fUSD/lending_fUSD_20250216
["ID","MTS","AMOUNT","RATE_DAILY","PERIOD"]
[353247561,1739715070804,-676.96,0.00011205,2]
[353247562,1739715070813,-500.0,0.00011205,2]
[353247563,1739715070822,-348.45,0.00011205,2]
[353247564,1739715070831,-157.12556,0.00011205,2]
[353247565,1739715070841,-500.0,0.00011205,2]
[353247566,1739715070850,-500.0,0.00011205,2]
[353247567,1739715070859,-1049.51,0.00011205,2]
[353247568,1739715070868,-500.0,0.00011205,2]
[353247569,1739715070877,-518.85,0.00011205,2]
[353247570,1739715070887,-500.0,0.00011205,2]
[353247571,1739715070896,-500.0,0.00011205,2]
[353247572,1739715070905,-1257.34,0.00011205,2]
[353247573,1739715070914,-500.0,0.00011205,2]
[353247574,1739715070923,-536.21,0.00011205,2]
[353247575,1739715070933,-500.0,0.00011205,2]
[353247576,1739715070942,-500.0,0.00011205,2]
[353247577,1739715070951,-500.0,0.00011205,2]
[353247578,1739715070960,-500.0,0.00011205,2]
[353247579,1739715070969,-749.39,0.00011205,2]
[353247580,1739715070979,-500.0,0.00011205,2]
[353247581,1739715070989,-500.0,0.00011205,2]
[353247582,1739715070999,-500.0,0.00011205,2]
[353247583,1739715071008,-500.0,0.00011205,2]
[353247584,1739715071018,-593.79,0.00011205,2]
[353247585,1739715071029,-500.0,0.00011205,2]
[353247586,1739715071038,-500.0,0.00011205,2]
[353247587,1739715071047,-563.21,0.00011205,2]
[353247588,1739715071056,-500.0,0.00011205,2]
[353247589,1739715071065,-809.52,0.00011205,2]
[353247590,1739715071075,-500.0,0.00011205,2]
[353247591,1739715071084,-301.80056774,0.00011205,2]
[353247592,1739715071093,-500.0,0.00011205,2]
[353247593,1739715071103,-500.0,0.00011205,2]
[353247594,1739715071112,-500.0,0.00011205,2]
[353247595,1739715071121,-500.0,0.00011205,2]
[353247596,1739715071130,-500.0,0.00011205,2]
[353247597,1739715071139,-500.0,0.00011205,2]
[353247598,1739715071148,-500.0,0.00011205,2]
[353247599,1739715071157,-500.0,0.00011205,2]
[353247600,1739715071166,-500.0,0.00011205,2]
[353247601,1739715071175,-500.0,0.00011205,2]
[353247602,1739715071184,-733.24,0.00011205,2]
[353247603,1739715071193,-543.72,0.00011205,2]
[353247604,1739715071202,-500.0,0.00011205,2]
[353247605,1739715071211,-500.0,0.00011205,2]
[353247606,1739715071221,-563.33,0.00011205,2]
[353247607,1739715071229,-500.0,0.00011205,2]
[353247608,1739715071239,-500.0,0.00011205,2]
[353247609,1739715071248,-500.0,0.00011205,2]
[353247610,1739715071257,-500.0,0.00011205,2]
[353247611,1739715071266,-759.09,0.00011205,2]
[353247612,1739715071275,-500.0,0.00011205,2]
[353247613,1739715071284,-500.0,0.00011205,2]
[353247614,1739715071293,-500.0,0.00011205,2]
[353247615,1739715071302,-500.0,0.00011205,2]
[353247616,1739715071311,-500.0,0.00011205,2]
[353247617,1739715071320,-806.21,0.00011205,2]
[353247618,1739715071329,-559.91,0.00011205,2]
[353247619,1739715071339,-500.0,0.00011205,2]
[353247620,1739715071348,-500.0,0.00011205,2]
[353247621,1739715071358,-500.0,0.00011205,2]
[353247622,1739715071367,-500.0,0.00011205,2]
[353247623,1739715071376,-784.93,0.00011205,2]
[353247624,1739715071385,-500.0,0.00011205,2]
[353247625,1739715071395,-500.0,0.00011205,2]
[353247626,1739715071404,-740.59,0.00011205,2]
[353247627,1739715071414,-587.36,0.00011205,2]
[353247628,1739715071424,-561.67,0.00011205,2]
[353247629,1739715071434,-500.0,0.00011205,2]
[353247630,1739715071443,-500.0,0.00011205,2]
[353247631,1739715071452,-500.0,0.00011205,2]
[353247632,1739715071462,-500.0,0.00011205,2]
[353247633,1739715071472,-181.67361287,0.00011205,2]
[353247634,1739715071481,-500.0,0.00011205,2]
[353247635,1739715071492,-500.0,0.00011205,2]
[353247636,1739715071502,-681.58,0.00011205,2]
[353247637,1739715071511,-500.0,0.00011205,2]
[353247638,1739715071520,-500.0,0.00011205,2]
[353247639,1739715071530,-824.55,0.00011205,2]
[353247640,1739715071539,-758.66,0.00011205,2]
[353247641,1739715071548,-540.21,0.00011205,2]
[353247642,1739715071557,-375.8586174,0.00011205,2]
[353247643,1739715071566,-951.56,0.00011205,2]
[353247644,1739715071575,-830.8,0.00011205,2]
[353247645,1739715071584,-247.35917556,0.00011205,2]
[353247646,1739715071593,-737.81,0.00011205,2]
[353247647,1739715071602,-500.0,0.00011205,2]
[353247648,1739715071612,-500.0,0.00011205,2]
[353247649,1739715071621,-500.0,0.00011205,2]
[353247650,1739715071632,-1159.06,0.00011205,2]
[353247651,1739715071641,-500.0,0.00011205,2]
[353247652,1739715071651,-500.0,0.00011205,2]
[353247653,1739715071660,-3660.94,0.00011205,2]
[353247654,1739715071670,-500.0,0.00011205,2]
[353247655,1739715071679,-500.0,0.00011205,2]
[353247656,1739715071688,-500.0,0.00011205,2]
[353247657,1739715071698,-958.21,0.00011205,2]
[353247658,1739715071708,-521.00508192,0.00011205,2]
[353247659,1739715071718,-500.0,0.00011205,2]
[353247660,1739715071728,-1060.48,0.00011205,2]
[353247661,1739715071736,-579.22,0.00011205,2]
[353247662,1739715071745,-1730.93,0.00011205,2]
[353247663,1739715071754,-500.0,0.00011205,2]
[353247664,1739715071764,-722.92,0.00011205,2]
[353247665,1739715071773,-786.46,0.00011205,2]
[353247666,1739715071782,-500.0,0.00011205,2]
[353247667,1739715071791,-1270.84,0.00011205,2]
[353247668,1739715071801,-804.45,0.00011205,2]
[353247669,1739715071810,-500.0,0.00011205,2]
[353247670,1739715071819,-878.61,0.00011205,2]
[353247671,1739715071829,-1391.28,0.00011205,2]
[353247672,1739715071838,-500.0,0.00011205,2]
[353247673,1739715071848,-500.0,0.00011205,2]
[353247674,1739715071857,-500.0,0.00011205,2]
[353247675,1739715071867,-500.0,0.00011205,2]
[353247676,1739715071876,-500.0,0.00011205,2]
[353247677,1739715071885,-500.0,0.00011205,2]
[353247678,1739715071894,-807.08,0.00011205,2]
[353247679,1739715071903,-652.19,0.00011205,2]
[353247680,1739715071913,-1342.55,0.00011205,2]
[353247681,1739715071923,-1331.21,0.00011205,2]
[353247682,1739715071934,-1435.31,0.00011205,2]
[353247683,1739715071943,-500.0,0.00011205,2]
[353247684,1739715071952,-2872.91,0.00011205,2]
[353247685,1739715071962,-1185.6,0.00011205,2]
[353247686,1739715071971,-500.0,0.00011205,2]
[353247687,1739715071980,-494.86143416,0.00011205,2]
[353247688,1739715071989,-500.0,0.00011205,2]
[353247689,1739715071998,-500.0,0.00011205,2]
[353247690,1739715072007,-500.0,0.00011205,2]
[353247691,1739715072016,-500.0,0.00011205,2]
[353247692,1739715072025,-500.0,0.00011205,2]
[353247693,1739715072034,-880.05,0.00011205,2]
[353247694,1739715072043,-2343.11,0.00011205,2]
[353247695,1739715072052,-1065.5,0.00011205,2]
[353247696,1739715072061,-500.0,0.00011205,2]
[353247697,1739715072071,-1602.94,0.00011205,2]
[353247698,1739715072080,-500.0,0.00011205,2]
[353247699,1739715072089,-1665.81,0.00011205,2]
[353247700,1739715072098,-767.8,0.00011205,2]
[353247701,1739715072107,-557.07,0.00011205,2]
[353247702,1739715072117,-896.78,0.00011205,2]
[353247703,1739715072126,-1549.56,0.00011205,2]
[353247704,1739715072135,-2011.15,0.00011205,2]
[353247705,1739715072145,-500.0,0.00011205,2]
[353247706,1739715072154,-921.0,0.00011205,2]
[353247707,1739715072163,-780.05,0.00011205,2]
[353247708,1739715072172,-2015.93,0.00011205,2]
[353247709,1739715072181,-500.0,0.00011205,2]
[353247710,1739715072190,-5933.4,0.00011205,2]
[353247711,1739715072200,-1028.79,0.00011205,2]
[353247712,1739715072210,-500.0,0.00011205,2]
[353247713,1739715072219,-806.38,0.00011205,2]
[353247714,1739715072228,-1735.22,0.00011205,2]
[353247715,1739715072238,-500.0,0.00011205,2]
[353247716,1739715072247,-618.15,0.00011205,2]
[353247717,1739715072256,-2177.12,0.00011205,2]
[353247718,1739715072264,-869.88,0.00011205,2]
[353247719,1739715072273,-1738.63,0.00011205,2]
[353247720,1739715072283,-500.0,0.00011205,2]
[353247721,1739715072292,-1405.53,0.00011205,2]
[353247722,1739715072301,-500.0,0.00011205,2]
[353247723,1739715072310,-1655.05,0.00011205,2]
[353247724,1739715072319,-500.0,0.00011205,2]
[353247725,1739715072329,-1858.43,0.00011205,2]
[353247726,1739715072338,-1154.03,0.00011205,2]
[353247727,1739715072347,-500.0,0.00011205,2]
[353247728,1739715072356,-1388.75,0.00011205,2]
[353247729,1739715072365,-506.37,0.00011205,2]
[353247730,1739715072374,-845.0,0.00011205,2]
[353247731,1739715072383,-2137.22,0.00011205,2]
[353247732,1739715072393,-500.0,0.00011205,2]
[353247733,1739715072402,-500.0,0.00011205,2]
[353247734,1739715072414,-2717.32,0.00011205,2]
[353247735,1739715072423,-1722.09,0.00011205,2]
[353247736,1739715072432,-500.0,0.00011205,2]
[353247737,1739715072441,-1132.72,0.00011205,2]
[353247738,1739715072451,-862.14,0.00011205,2]
[353247739,1739715072462,-2266.58,0.00011205,2]
[353247740,1739715072472,-500.0,0.00011205,2]
[353247741,1739715072481,-500.0,0.00011205,2]
[353247742,1739715072490,-1546.15,0.00011205,2]
[353247743,1739715072500,-691.19,0.00011205,2]
[353247744,1739715072509,-716.06,0.00011205,2]
[353247745,1739715072519,-500.0,0.00011205,2]
[353247746,1739715072528,-691.61,0.00011205,2]
[353247747,1739715072537,-500.0,0.00011205,2]
[353247748,1739715072546,-3681.57,0.00011205,2]
[353247749,1739715072555,-1750.04,0.00011205,2]
[353247750,1739715072564,-500.0,0.00011205,2]
[353247751,1739715072573,-500.0,0.00011205,2]
[353247752,1739715072582,-2206.06,0.00011205,2]
[353247753,1739715072592,-1226.98,0.00011205,2]
[353247754,1739715072601,-594.62,0.00011205,2]
[353247755,1739715072610,-500.0,0.00011205,2]
[353247756,1739715072619,-1012.09,0.00011205,2]
[353247757,1739715072628,-556.09,0.00011205,2]
[353247758,1739715072638,-4179.36,0.00011205,2]
[353247759,1739715072647,-500.0,0.00011205,2]
[353247760,1739715072657,-500.0,0.00011205,2]
[353247761,1739715072666,-1772.08,0.00011205,2]
[353247762,1739715072676,-500.0,0.00011205,2]
[353247763,1739715072685,-1227.53,0.00011205,2]
[353247764,1739715072697,-500.0,0.00011205,2]
[353247765,1739715072706,-708.46,0.00011205,2]
[353247766,1739715072716,-505.29748627,0.00011205,2]
[353247767,1739715072725,-1664.11,0.00011205,2]
[353247768,1739715072734,-1847.98,0.00011205,2]
[353247769,1739715072744,-985.39,0.00011205,2]
[353247770,1739715072753,-500.0,0.00011205,2]
[353247771,1739715072763,-500.0,0.00011205,2]
[353247772,1739715072773,-2328.12,0.00011205,2]
[353247773,1739715072783,-500.0,0.00011205,2]
[353247774,1739715072792,-500.0,0.00011205,2]
[353247775,1739715072802,-1121.04,0.00011205,2]
[353247776,1739715072811,-2199.9,0.00011205,2]
[353247777,1739715072822,-1873.13,0.00011205,2]
[353247778,1739715072832,-1589.01,0.00011205,2]
[353247779,1739715072841,-504.30473122,0.00011205,2]
[353247780,1739715072851,-634.08,0.00011205,2]
[353247781,1739715072861,-500.0,0.00011205,2]
[353247782,1739715072871,-2233.29,0.00011205,2]
[353247783,1739715072880,-823.12,0.00011205,2]
[353247784,1739715072890,-851.28,0.00011205,2]
[353247785,1739715072899,-500.0,0.00011205,2]
[353247786,1739715072910,-1640.79,0.00011205,2]
[353247787,1739715072920,-1471.53,0.00011205,2]
[353247788,1739715072930,-1973.36,0.00011205,2]
[353247789,1739715072940,-1147.19,0.00011205,2]
[353247790,1739715072952,-1149.84,0.00011205,2]
[353247791,1739715072961,-500.0,0.00011205,2]
[353247792,1739715072972,-2803.89,0.00011205,2]
[353247793,1739715072982,-1721.95,0.00011205,2]
[353247794,1739715072992,-656.28,0.00011205,2]
[353247795,1739715073002,-500.0,0.00011205,2]
[353247796,1739715073012,-595.56,0.00011205,2]
[353247797,1739715073022,-4744.83,0.00011205,2]
[353247798,1739715073031,-1314.73,0.00011205,2]
[353247799,1739715073040,-500.0,0.00011205,2]
[353247800,1739715073049,-500.0,0.00011205,2]
[353247801,1739715073058,-1553.5,0.00011205,2]
[353247802,1739715073068,-1829.91,0.00011205,2]
[353247803,1739715073077,-1764.57,0.00011205,2]
[353247804,1739715073086,-1182.45,0.00011205,2]
[353247805,1739715073095,-500.0,0.00011205,2]
[353247806,1739715073105,-500.0,0.00011205,2]
[353247807,1739715073114,-500.0,0.00011205,2]
[353247808,1739715073123,-1002.85,0.00011205,2]
[353247809,1739715073133,-500.0,0.00011205,2]
[353247810,1739715073142,-1136.89,0.00011205,2]
[353247811,1739715073151,-1653.72,0.00011205,2]
[353247812,1739715073160,-500.0,0.00011205,2]
[353247813,1739715073170,-620.77,0.00011205,2]
[353247814,1739715073180,-504.17531236,0.00011205,2]
[353247815,1739715073190,-500.0,0.00011205,2]
[353247816,1739715073199,-1095.24,0.00011205,2]
[353247817,1739715073209,-2009.56,0.00011205,2]
[353247818,1739715073220,-1935.06,0.00011205,2]
[353247819,1739715073229,-2577.43,0.00011205,2]
[353247820,1739715073383,-336.24,0.00011205,2]
[353247821,1739715073393,-500.0,0.00011205,2]
[353247822,1739715073402,-1487.02,0.00011205,2]
[353247823,1739715073413,-2733.14,0.00011205,2]
[353247824,1739715073423,-500.0,0.00011205,2]
[353247825,1739715073432,-1128.53,0.00011205,2]
[353247826,1739715073441,-500.0,0.00011205,2]
[353247827,1739715073455,-929.94,0.00011205,2]
[353247828,1739715073463,-1672.93,0.00011205,2]
[353247829,1739715073473,-1816.55,0.00011205,2]
[353247830,1739715073483,-560.45,0.00011205,2]
[353247831,1739715073495,-500.0,0.00011205,2]
[353247832,1739715073505,-500.0,0.00011205,2]
[353247833,1739715073515,-1222.77,0.00011205,2]
[353247834,1739715073524,-500.0,0.00011205,2]
[353247835,1739715073533,-503.02,0.00011205,2]
[353247836,1739715073543,-500.0,0.00011205,2]
[353247837,1739715073553,-1027.59,0.00011205,2]
[353247838,1739715073562,-1618.22,0.00011205,2]
[353247839,1739715073571,-1147.58,0.00011205,2]
[353247840,1739715073581,-859.27,0.00011205,2]
[353247841,1739715073590,-573.19,0.00011205,2]
[353247842,1739715073599,-500.0,0.00011205,2]
[353247843,1739715073608,-837.31,0.00011205,2]
[353247844,1739715073619,-500.0,0.00011205,2]
[353247845,1739715073629,-1475.15,0.00011205,2]
[353247846,1739715073639,-500.0,0.00011205,2]
[353247847,1739715073649,-593.61,0.00011205,2]
[353247848,1739715073658,-3567.55,0.00011205,2]
[353247849,1739715073667,-560.7,0.00011205,2]
[353247850,1739715073676,-613.77,0.00011205,2]
[353247851,1739715073686,-710.23,0.00011205,2]
[353247852,1739715073695,-1952.48,0.00011205,2]
[353247853,1739715073704,-500.0,0.00011205,2]
[353247854,1739715073713,-680.82,0.00011205,2]
[353247855,1739715073722,-736.75,0.00011205,2]
[353247856,1739715073732,-500.0,0.00011205,2]
[353247857,1739715073741,-1631.16,0.00011205,2]
[353247858,1739715073750,-200.0,0.0001121,2]
[353247859,1739715073760,-202.0,0.0001121,2]
[353247860,1739715073770,-599.0,0.00011232,2]
[353247861,1739715073779,-1200.0,0.00011232,2]
[353247862,1739715073788,-1200.0,0.00011232,2]
[353247863,1739715073797,-1200.0,0.00011232,2]
[353247864,1739715073807,-1200.0,0.00011232,2]
[353247865,1739715073816,-400.0,0.0001127,2]
[353247866,1739715073826,-400.0,0.0001127,2]
[353247867,1739715073835,-157.370126,0.00011287,2]
[353247868,1739715073844,-500.0,0.00011287,2]
[353247869,1739715073854,-500.0,0.00011287,2]
[353247870,1739715073863,-500.0,0.00011287,2]
[353247871,1739715073872,-459.84973583,0.00011287,2]
[353247872,1739715073882,-500.0,0.00011287,2]
[353247873,1739715073891,-207.85,0.00011287,2]
[353247874,1739715073900,-500.0,0.00011287,2]
[353247875,1739715073910,-500.0,0.00011287,2]
[353247876,1739715073919,-500.0,0.00011287,2]
[353247877,1739715073928,-500.0,0.00011287,2]
[353247878,1739715073937,-500.0,0.00011287,2]
[353247879,1739715073946,-500.0,0.00011287,2]
[353247880,1739715073955,-979.27,0.00011287,2]
[353247881,1739715073964,-500.0,0.00011287,2]
[353247882,1739715073974,-500.0,0.00011287,2]
[353247883,1739715073983,-505.3611789,0.00011287,2]
[353247884,1739715073992,-560.65,0.00011287,2]
[353247885,1739715074001,-500.0,0.00011287,2]
[353247886,1739715074010,-500.0,0.00011287,2]
[353247887,1739715074020,-500.0,0.00011287,2]
[353247888,1739715074029,-585.91,0.00011287,2]
[353247889,1739715074038,-500.0,0.00011287,2]
[353247890,1739715074047,-500.0,0.00011287,2]
[353247891,1739715074056,-500.0,0.00011287,2]
[353247892,1739715074066,-512.78,0.00011287,2]
[353247893,1739715074075,-500.0,0.00011287,2]
[353247894,1739715074084,-500.0,0.00011287,2]
[353247895,1739715074094,-500.0,0.00011287,2]
[353247896,1739715074103,-500.0,0.00011287,2]
[353247897,1739715074112,-500.0,0.00011287,2]
[353247898,1739715074121,-500.0,0.00011287,2]
[353247899,1739715074130,-500.0,0.00011287,2]
[353247900,1739715074139,-500.0,0.00011287,2]
[353247901,1739715074148,-500.0,0.00011287,2]
[353247902,1739715074157,-500.0,0.00011287,2]
[353247903,1739715074166,-317.798497,0.00011287,2]
[353247904,1739715074175,-500.0,0.00011287,2]
[353247905,1739715074184,-1008.56,0.00011287,2]
[353247906,1739715074194,-626.81,0.00011287,2]
[353247907,1739715074203,-500.0,0.00011287,2]
[353247908,1739715074212,-500.0,0.00011287,2]
[353247909,1739715074223,-1073.95,0.00011287,2]
[353247910,1739715074232,-990.543172,0.00011287,2]
[353247911,1739715074241,-631.94,0.00011287,2]
[353247912,1739715074251,-786.3,0.00011287,2]
[353247913,1739715074259,-500.0,0.00011287,2]
[353247914,1739715074269,-500.0,0.00011287,2]
[353247915,1739715074278,-500.0,0.00011287,2]
[353247916,1739715074287,-202.24,0.00011287,2]
[353247917,1739715074296,-998.92,0.00011287,2]
[353247918,1739715074305,-500.0,0.00011287,2]
[353247919,1739715074314,-531.25,0.00011287,2]
[353247920,1739715074324,-718.29,0.00011287,2]
[353247921,1739715074332,-591.31,0.00011287,2]
[353247922,1739715074342,-500.0,0.00011287,2]
[353247923,1739715074351,-500.0,0.00011287,2]
[353247924,1739715074360,-154.32,0.00011287,2]
[353247925,1739715074370,-637.08,0.00011287,2]
[353247926,1739715074379,-500.0,0.00011287,2]
[353247927,1739715074388,-500.0,0.00011287,2]
[353247928,1739715074397,-500.0,0.00011287,2]
[353247929,1739715074407,-500.0,0.00011287,2]
[353247930,1739715074418,-742.48,0.00011287,2]
[353247931,1739715074427,-999.19861,0.00011287,2]
[353247932,1739715074436,-599.64,0.00011287,2]
[353247933,1739715074445,-500.0,0.00011287,2]
[353247934,1739715074455,-500.0,0.00011287,2]
[353247935,1739715074463,-500.0,0.00011287,2]
[353247936,1739715074474,-662.93,0.00011287,2]
[353247937,1739715074483,-500.0,0.00011287,2]
[353247938,1739715074495,-500.0,0.00011287,2]
[353247939,1739715074504,-764.57,0.00011287,2]
[353247940,1739715074513,-859.44,0.00011287,2]
[353247941,1739715074523,-500.0,0.00011287,2]
[353247942,1739715074532,-500.0,0.00011287,2]
[353247943,1739715074541,-500.0,0.00011287,2]
[353247944,1739715074550,-500.0,0.00011287,2]
[353247945,1739715074559,-500.0,0.00011287,2]
[353247946,1739715074568,-500.0,0.00011287,2]
[353247947,1739715074577,-500.0,0.00011287,2]
[353247948,1739715074587,-563.04,0.00011287,2]
[353247949,1739715074596,-500.0,0.00011287,2]
[353247950,1739715074604,-500.0,0.00011287,2]
[353247951,1739715074614,-500.0,0.00011287,2]
[353247952,1739715074623,-151.0,0.00011287,2]
[353247953,1739715074633,-500.0,0.00011287,2]
[353247954,1739715074642,-500.0,0.00011287,2]
[353247955,1739715074651,-822.81,0.00011287,2]
[353247956,1739715074660,-500.0,0.00011287,2]
[353247957,1739715074669,-500.0,0.00011287,2]
[353247958,1739715074679,-682.83,0.00011287,2]
[353247959,1739715074688,-840.79,0.00011287,2]
[353247960,1739715074698,-845.5,0.00011287,2]
[353247961,1739715074707,-500.0,0.00011287,2]
[353247962,1739715074716,-500.0,0.00011287,2]
[353247963,1739715074726,-505.27997682,0.00011287,2]
[353247964,1739715074735,-580.14,0.00011287,2]
[353247965,1739715074745,-500.0,0.00011287,2]
[353247966,1739715074755,-547.91,0.00011287,2]
[353247967,1739715074764,-500.0,0.00011287,2]
[353247968,1739715074773,-687.94,0.00011287,2]
[353247969,1739715074782,-804.85,0.00011287,2]
[353247970,1739715074791,-500.0,0.00011287,2]
[353247971,1739715074800,-500.0,0.00011287,2]
[353247972,1739715074809,-500.0,0.00011287,2]
[353247973,1739715074819,-500.0,0.00011287,2]
[353247974,1739715074827,-500.0,0.00011287,2]
[353247975,1739715074837,-500.0,0.00011287,2]
[353247976,1739715074846,-500.0,0.00011287,2]
[353247977,1739715074855,-500.0,0.00011287,2]
[353247978,1739715074864,-500.0,0.00011287,2]
[353247979,1739715074873,-500.0,0.00011287,2]
[353247980,1739715074882,-500.0,0.00011287,2]
[353247981,1739715074891,-500.0,0.00011287,2]
[353247982,1739715074905,-500.0,0.00011287,2]
[353247983,1739715074914,-500.0,0.00011287,2]
[353247984,1739715074923,-1689.28,0.00011287,2]
[353247985,1739715074932,-500.0,0.00011287,2]
[353247986,1739715074941,-565.18,0.00011287,2]
[353247987,1739715074950,-728.92,0.00011287,2]
[353247988,1739715074959,-500.0,0.00011287,2]
[353247989,1739715074969,-815.99,0.00011287,2]
[353247990,1739715074979,-500.0,0.00011287,2]
[353247991,1739715074988,-500.0,0.00011287,2]
[353247992,1739715074997,-646.73,0.00011287,2]
[353247993,1739715075007,-500.0,0.00011287,2]
[353247994,1739715075017,-500.0,0.00011287,2]
[353247995,1739715075026,-533.18,0.00011287,2]
[353247996,1739715075035,-500.0,0.00011287,2]
[353247997,1739715075045,-500.0,0.00011287,2]
[353247998,1739715075054,-500.0,0.00011287,2]
[353247999,1739715075063,-500.0,0.00011287,2]
[353248000,1739715075072,-500.0,0.00011287,2]
[353248001,1739715075082,-308.64,0.00011287,2]
[353248002,1739715075091,-401.78695489,0.00011287,2]
[353248003,1739715075100,-500.0,0.00011287,2]
[353248004,1739715075110,-801.5,0.00011287,2]
[353248005,1739715075119,-500.0,0.00011287,2]
[353248006,1739715075128,-500.0,0.00011287,2]
[353248007,1739715075138,-1255.83,0.00011287,2]
[353248008,1739715075147,-500.0,0.00011287,2]
[353248009,1739715075156,-500.0,0.00011287,2]
[353248010,1739715075166,-500.0,0.00011287,2]
[353248011,1739715075175,-500.0,0.00011287,2]
[353248012,1739715075184,-683.35,0.00011287,2]
[353248013,1739715075194,-186.5,0.00011287,2]
[353248014,1739715075203,-776.04,0.00011287,2]
[353248015,1739715075212,-288.55862877,0.00011287,2]
[353248016,1739715075222,-536.76,0.00011287,2]
[353248017,1739715075231,-674.54,0.00011287,2]
[353248018,1739715075242,-1260.16,0.00011287,2]
[353248019,1739715075251,-500.0,0.00011287,2]
[353248020,1739715075260,-500.0,0.00011287,2]
[353248021,1739715075269,-500.0,0.00011287,2]
[353248022,1739715075278,-500.0,0.00011287,2]
[353248023,1739715075287,-500.0,0.00011287,2]
[353248024,1739715075297,-1494.67,0.00011287,2]
[353248025,1739715075306,-565.35,0.00011287,2]
[353248026,1739715075315,-676.96,0.00011287,2]
[353248027,1739715075325,-500.0,0.00011287,2]
[353248028,1739715075334,-500.0,0.00011287,2]
[353248029,1739715075344,-500.0,0.00011287,2]
[353248030,1739715075353,-1049.51,0.00011287,2]
[353248031,1739715075362,-500.0,0.00011287,2]
[353248032,1739715075371,-518.85,0.00011287,2]
[353248033,1739715075380,-500.0,0.00011287,2]
[353248034,1739715075390,-449.66,0.00011287,2]
[353248035,1739715075400,-1257.34,0.00011287,2]
[353248036,1739715075414,-500.0,0.00011287,2]
[353248037,1739715075424,-536.21,0.00011287,2]
[353248038,1739715075434,-500.0,0.00011287,2]
[353248039,1739715075444,-500.0,0.00011287,2]
[353248040,1739715075454,-500.0,0.00011287,2]
[353248041,1739715075464,-500.0,0.00011287,2]
[353248042,1739715075474,-749.39,0.00011287,2]
[353248043,1739715075483,-500.0,0.00011287,2]
[353248044,1739715075494,-500.0,0.00011287,2]
[353248045,1739715075503,-500.0,0.00011287,2]
[353248046,1739715075513,-500.0,0.00011287,2]
[353248047,1739715075522,-593.79,0.00011287,2]
[353248048,1739715075531,-500.0,0.00011287,2]
[353248049,1739715075541,-500.0,0.00011287,2]
[353248050,1739715075550,-563.21,0.00011287,2]
[353248051,1739715075559,-500.0,0.00011287,2]
[353248052,1739715075569,-809.52,0.00011287,2]
[353248053,1739715075579,-500.0,0.00011287,2]
[353248054,1739715075588,-500.0,0.00011287,2]
[353248055,1739715075598,-500.0,0.00011287,2]
[353248056,1739715075608,-500.0,0.00011287,2]
[353248057,1739715075618,-500.0,0.00011287,2]
[353248058,1739715075627,-500.0,0.00011287,2]
[353248059,1739715075637,-500.0,0.00011287,2]
[353248060,1739715075647,-500.0,0.00011287,2]